Cogmind - Beta 17 @@@ ROGUE MODE // 2026.08.09 @ 11:08:31 Player: Blaj Result: Destroyed by 2D-21W(R) with Subdweller Laser Performance ------------- Evolutions (0) 0 Regions Visited (2) 400 Robots Destroyed (11) 55 Value Destroyed (168) 168 Prototype IDs (3) 60 Alien Tech Used (0) 0 Bonus (5000) 5000 TOTAL SCORE: 5683 Bonus ------- Prayed to X0-1V1 5000 Cogmind --------- Core Integrity 0/250 Matter 300/300 Energy 125/125 System Corruption 2% Temperature Cool (6) Movement Treading (160) Location -10/Subcaves Parts ------- > --- POWER (1) -------- Light Ion Engine > --- PROPULSION (2) --- Light Treads Light Treads > --- UTILITY (2) ------ Medium Storage Unit X0-1V1's Piety Tracker > --- WEAPON (2) ------- Medium Laser > --- INVENTORY (10) --- Aluminum Leg Aluminum Leg Machine Analyzer Seismic Detector ECM Suite Mining Laser Peak State ------------ > --- POWER ------------ Ion Engine > --- PROPULSION ------- Aluminum Leg Aluminum Leg > --- UTILITY ---------- Medium Storage Unit X0-1V1's Piety Tracker > --- WEAPON ----------- Medium Laser Medium Laser > --- INVENTORY -------- Light Ion Engine Light Treads Light Treads Light Treads Light Treads Machine Analyzer Seismic Detector ECM Suite Light Cannon Mining Laser [Rating: 20] Favorites ----------- Power Ion Engine Engine Ion Engine Propulsion Aluminum Leg Treads Light Treads Leg Aluminum Leg Utility Seismic Detector Device Seismic Detector Storage Medium Storage Unit Weapon Medium Laser Energy Gun Medium Laser Ballistic Cannon Light Cannon Special Weapon Mining Laser Build | -11 -10 -10 ------- Run | Yrd Mat Sub Slots Evolved . | . . . Power . | . . . Propulsion . | . . . Utility . | . . . Weapon . | . . . Parts Attached 12 | 2 4 6 Power 1 | . . 1 Engine 1 | . . 1 Core . | . . . Reactor . | . . . Propulsion 4 | . . 4 Treads 4 | . . 4 Leg . | . . . Wheel . | . . . Hover . | . . . Flight . | . . . Utility 4 | 1 3 . Device 3 | 1 2 . Storage 1 | . 1 . Processor . | . . . Hackware . | . . . Protection . | . . . Artifact . | . . . Weapon 3 | 1 1 1 Energy Gun 1 | 1 . . Energy Cannon . | . . . Ballistic Gun . | . . . Ballistic Cannon 1 | . . 1 Launcher . | . . . Special Weapon 1 | . 1 . Impact Weapon . | . . . Slashing Weapon . | . . . Piercing Weapon . | . . . Special Melee Weapon . | . . . Unidentified Prototypes 1 | . 1 . Parts Lost 5 | . . 5 Power 1 | . . 1 Propulsion 2 | . . 2 Utility . | . . . Weapon 2 | . . 2 Highest Loss Streak 5 | . . 5 To Critical Strikes . | . . . Average Backups 7 | 6 8 8 Power . | 1 1 . Propulsion 3 | 4 3 3 Utility 1 | . 1 3 Weapon 2 | 1 2 1 Tool/Special . | . . . Unused Backups 11 | 5 3 3 Power 2 | 1 . 1 Propulsion 4 | 2 2 . Utility 2 | 1 . 1 Weapon 3 | 1 1 1 Tool/Special . | . . . Average Slot Usage (%) 98 | . 98 96 Engine 13 | . 14 12 Treads 3 | . . 24 Leg 24 | . 28 3 Device 12 | . 12 14 Storage 14 | . 14 14 Energy Gun 26 | . 27 17 Ballistic Cannon 1 | . . 8 Peak Build Rating 20 | 7 20 20 Average Rating 8 | 6 7 19 On Entrance 11 | 6 7 20 Avg Prop Armor Cover (%) . | . . . Naked Turns . | . . . Heaviest Build 21 | 15 21 20 Greatest Support 40 | 20 20 40 Greatest Overweight (x) 1 | . 1 . Average Overweight (x) . | . . . Largest Inventory Capacity 10 | 8 10 10 Average Capacity 9 | 8 9 10 Most Carried 10 | 7 10 10 Average Carried 7 | 6 8 8 Final Capacity 10 | 8 10 10 Final Carried 10 | 7 10 6 Class Distribution -------------------- 100% | Mutant Dominant Class ---------------- Mutant | -10/Materials Mutant | -10/Subcaves Resources | -11 -10 -10 ----------- Run | Yrd Mat Sub Matter Collected 274 | 210 29 35 Remotely . | . . . Salvage Created 331 | 79 169 83 Parts 20 | 9 8 3 Haulers Intercepted 1 | . 1 . Recyclers Shooed . | . . . Parts Field Recycled . | . . . Retrieved Matter . | . . . Parts Self-Destructed . | . . . Prevented . | . . . Parts Restored . | . . . Kills | -11 -10 -10 ------- Run | Yrd Mat Sub Combat Hostiles Destroyed 4 | . 2 2 Guns 4 | . 2 2 Classes Destroyed 6 | 1 4 1 Tunneler 3 | 3 . . Hauler 1 | . 1 . Mechanic 1 | . 1 . Watcher 2 | . 2 . Swarmer 2 | . 2 . Subdweller 2 | . . 2 Best Kill Streak 2 | 2 2 2 Combat Bots Only 2 | . 2 2 Max Kills in Single Turn 1 | 1 1 1 Gunslinging . | . . . Exploded . | . . . Melee . | . . . Uniques/NPCs Destroyed . | . . . Combat | -11 -10 -10 -------- Run | Yrd Mat Sub Hostile Shots Fired 65 | . 6 59 Missed 7 | . . 7 Hits 58 | . 6 52 Projectile 58 | . 6 52 Critical Strikes 1 | . . 1 Damage Taken 1149 | . 49 1100 Core 255 | . 10 245 Absorbed by Shields . | . . . Core Remaining (%) 100 | 100 . . Volleys Fired 48 | 7 27 14 Largest 2 | 2 2 2 Hottest 100 | 90 100 100 Shots Fired 84 | 14 45 25 Gun 70 | 14 40 16 Cannon 9 | . . 9 Launcher . | . . . Special 5 | . 5 . Kinetic 9 | . . 9 Thermal 75 | 14 45 16 Explosive . | . . . Electromagnetic . | . . . Robot Hit Streak 10 | 5 7 10 Robot Miss Streak 4 | 2 4 2 Penetration Max . | . . . Secondary Targets . | . . . Shots Hit Robots 47 | 9 19 19 Core Hits 14 | 3 8 3 Critical Kills . | . . . Critical Parts Destroyed . | . . . Critical Strikes 4 | 1 2 1 Burn 4 | 1 2 1 Melee Attacks . | . . . Impact . | . . . Slashing . | . . . Piercing . | . . . Sneak Attacks . | . . . Combat Hostiles . | . . . Follow-up Attacks . | . . . Damage Inflicted 473 | 104 238 131 Guns 404 | 104 238 62 Cannons 66 | . . 66 Explosions . | . . . Melee . | . . . Ramming 3 | . . 3 Kinetic 66 | . . 66 Thermal 404 | 104 238 62 Explosive . | . . . Electromagnetic . | . . . Impact . | . . . Slashing . | . . . Piercing . | . . . Highest Corruption 2 | . 2 2 Average Corruption 2 | . 2 2 Corruption Purged . | . . . Corruption Blocked . | . . . Effects 8 | . 5 3 Matter Fused 2 | . 2 . Heat Flow Errors 1 | . 1 . Parts Rejected 1 | . . 1 Data Loss (minor) 2 | . 2 . Weapon Failures 2 | . . 2 Overload Shots . | . . . Overflow Damage . | . . . Projectiles . | . . . Explosions . | . . . Melee . | . . . Knockbacks 1 | . . 1 Impact 1 | . . 1 Kinetic . | . . . Secondary . | . . . Self-Inflicted Damage . | . . . Shots . | . . . Rammed 1 | . . 1 Targets Rammed 1 | . . 1 Kicked . | . . . Crushed . | . . . Highest Temperature 234 | 120 234 . Average Temperature 60 | 56 62 . Received Heat Transfer 90 | . . 90 Siege Activations . | . . . Martial Activations . | . . . Shielding Activations . | . . . Robots Disrupted . | . . . Combat Hostiles . | . . . Robots Corrupted . | . . . Combat Hostiles . | . . . Parts Fried . | . . . Impact Corruptions . | . . . Robots Melted . | . . . Combat Hostiles . | . . . Parts Melted 5 | 2 1 2 Heat Transferred 1445 | 335 851 259 Parts Sabotaged . | . . . Parts Stolen . | . . . Parts Stripped . | . . . Power Chain Reactions . | . . . Alert | -11 -10 -10 ------- Run | Yrd Mat Sub Maximum Alert Level . | . . . Low Security (%) 100 | 100 100 . Level 1 . | . . . Level 2 . | . . . Level 3 . | . . . Level 4 . | . . . Level 5 . | . . . High Security . | . . . Max Security . | . . . Peak Influence 76 | 10 76 . Initial . | . . . Average 14 | 2 16 . Influence Increases 138 | 15 123 . Destroy 0b10 Robot/C 40 | . 40 . Destroy 0b10 Robot/NC 35 | 15 20 . Destroy Leader 16 | . 16 . Successful Hack 28 | . 28 . Destroy Structure 4 | . 4 . Lose Combat Pursuer 15 | . 15 . Influence Decreases 138 | 15 93 30 Entered New Map 15 | . . 15 Time Decay 113 | 15 93 5 Lost Part 10 | . . 10 Squads Dispatched . | . . . Investigation . | . . . Extermination . | . . . Reinforcement . | . . . Assault . | . . . Garrison . | . . . Intercept . | . . . Searches Triggered . | . . . Construction Impeded . | . . . Haulers Reinforced . | . . . Active Scanning Responses . | . . . Cargo Convoy Interrupts . | . . . Stealth | -11 -10 -10 --------- Run | Yrd Mat Sub Distress Signals . | . . . Communications Jammed . | . . . Distress Signals . | . . . Times Spotted 12 | . 8 4 Peak Tracking Total 4 | . 3 4 Tactical Retreats 2 | . 2 . ECM-based Alert Blocks 2 | . 2 . Traps | -11 -10 -10 ------- Run | Yrd Mat Sub Traps Triggered 1 | . 1 . Indirectly . | . . . Trap Hack Attempts . | . . . Triggered . | . . . Disarmed . | . . . Reprogrammed . | . . . Reused . | . . . Traps Extracted . | . . . Installed . | . . . Triggered . | . . . Machines | -11 -10 -10 ---------- Run | Yrd Mat Sub Machines Disabled . | . . . Max in Single Turn . | . . . Machines Repaired . | . . . Machines Dismantled . | . . . Machines Sabotaged . | . . . Overloaded Fab Kills . | . . . Hacking | -11 -10 -10 --------- Run | Yrd Mat Sub Machines Accessed 3 | . 3 . Terminals 2 | . 2 . Fabricators . | . . . Repair Stations 1 | . 1 . Recycling Units . | . . . Scanalyzers . | . . . Garrison Access . | . . . Total Hacks 16 | . 16 . Successful 10 | . 10 . Failed 6 | . 6 . Catastrophic 1 | . 1 . Database Lockouts . | . . . Manual 7 | . 7 . Terminals 14 | . 14 . Fabricators . | . . . Repair Stations 2 | . 2 . Recycling Units . | . . . Scanalyzers . | . . . Garrison Access . | . . . Terminal Hacks 7 | . 7 . Record 3 | . 3 . Prototype ID Bank 1 | . 1 . Locate Traps 1 | . 1 . Hauler Manifests 1 | . 1 . Zone Layout 1 | . 1 . Fabricator Hacks . | . . . Repair Station Hacks . | . . . Recycling Unit Hacks . | . . . Scanalyzer . | . . . Garrison Access Hacks . | . . . Unauthorized Hacks 3 | . 3 . Terminals 2 | . 2 . Botnet 1 | . 1 . Operators 1 | . 1 . Fabricators . | . . . Repair Stations 1 | . 1 . Mechanics 1 | . 1 . Recycling Units . | . . . Scanalyzers . | . . . Garrison Access . | . . . Data Cores Recovered . | . . . Used . | . . . Hacking Detections 3 | . 3 . Full Trace Events . | . . . Feedback Events . | . . . Feedback Blocked . | . . . Robot Schematics Acquired . | . . . Robots Built . | . . . Authchips . | . . . Time . | . . . Total Robot Build Rating . | . . . Part Schematics Acquired . | . . . Parts Built . | . . . Authchips . | . . . Time . | . . . Total Part Build Rating . | . . . Part Studies Acquired . | . . . Parts Repaired . | . . . Time . | . . . Parts Recycled . | . . . Recycled Matter . | . . . Retrieved Matter . | . . . Retrieved Components . | . . . Parts Scanalyzed . | . . . Part Schematics Acquired . | . . . Parts Damaged . | . . . Bothacking | -11 -10 -10 ------------ Run | Yrd Mat Sub Used RIF Installer . | . . . Robots Hacked . | . . . Non-combat . | . . . Combat . | . . . Robot Hacks Applied . | . . . Relay Couplers Released . | . . . Fabnet Peak Effective % . | . . . Robots Rewired . | . . . Allies Hacked . | . . . Hacks Repelled . | . . . Allies | -11 -10 -10 -------- Run | Yrd Mat Sub Total Allies . | . . . Largest Group . | . . . Highest-Rated Group . | . . . Highest-Rated Ally . | . . . Total Orders . | . . . Ally Attacks . | . . . Total Damage . | . . . Kills . | . . . Allies Corrupted . | . . . Allies Melted . | . . . X0-1V1 Amusement Gains 11 | . 11 . Good Acts 2 | . . 2 Bad Acts 1 | . . 1 Intel | -11 -10 -10 ------- Run | Yrd Mat Sub Active Infowar (turns) 437 | 7 430 . Seismic 376 | 7 369 . ECM 61 | . 61 . Robot Analysis Total . | . . . Derelict Logs Recovered . | . . . Drone Launches . | . . . Drone Recoveries . | . . . Exploration | -11 -10 -10 ------------- Run | Yrd Mat Sub Turns Passed 637 | 80 483 74 Spaces Moved 269 | 16 240 13 Core . | . . . Treads 12 | . . 12 Legs 257 | 16 240 1 Wheels . | . . . Hover . | . . . Flight . | . . . Fastest Speed 120 | 120 120 120 Average Speed 127 | 120 126 156 Slowest Speed 190 | 120 190 160 Overloaded Moves . | . . . Propulsion Burnouts . | . . . Robots Hopped . | . . . Potential Cave-ins . | . . . Cave-ins Triggered . | . . . Exploration Rate (%) 21 | 3 58 2 Regions Visited 2 Branch Regions 1 Pre-discovered Areas . | . . . Known Exits Taken . | . . . Unknown Exits Taken 2 | 1 1 . Scrap Searched . | . . . Spaces Dug 3 | . 3 . Terrain Destroyed 5 | . 5 . Melee . | . . . Projectile 5 | . 5 . AOE . | . . . Terrain Rammed . | . . . Walls Destroyed . | . . . Machines Disabled . | . . . Actions | -11 -10 -10 --------- Run | Yrd Mat Sub Total 464 | 62 365 37 Wait 119 | 37 81 1 Move 267 | 15 239 13 Hop . | . . . Pick Up 7 | 1 6 . Fast Attach 4 | 1 1 2 Attach 5 | . 1 4 Detach 1 | . 1 . Swap 7 | 1 4 2 Drop 5 | . 5 . Fire 48 | 7 27 14 Melee . | . . . Ram . | . . . Kick . | . . . Crush 1 | . . 1 Escape Stasis . | . . . Rewire . | . . . Trap . | . . . Miscellaneous . | . . . Route ------- -11/Scrapyard -10/Materials (discovered 3 exits: [*Mat] / [*Min] / [*Sub]) -10/Subcaves History --------- Turn | Location | Event 1 | -11/Scrapyard | Discovered new exit (range 3) 81 | -11/Scrapyard | Entered Materials 312 | -10/Materials | Discovered new exit (range 11) 326 | -10/Materials | Build established: Mutant 474 | -10/Materials | Discovered new exit (range 13) 553 | -10/Materials | Discovered new exit (range 5) 561 | -10/Materials | Prayed at D.C.S.S. Altar Unit 564 | -10/Materials | Entered Subcaves 565 | -10/Subcaves | Approached by a straggling Scientist 566 | -10/Subcaves | Ambushed by Subdwellers from Twisted Machinery 613 | -10/Subcaves | Core integrity fell below 50% 619 | -10/Subcaves | Core integrity fell below 20% 638 | -10/Subcaves | Destroyed by 2D-21W(R) with Subdweller Laser Last Messages --------------- 00614_ Sub. Machine Gun melted. 00614_ OY-RF3(R) destroyed. 00620_ System corrupted: Med. Laser failed to cycle. 00623_ System corrupted: Lgt. Cannon rejected. 00623_ Acquired Lgt. Cannon. 00624_ X0-1V1 injects you with a stream of matter (+116). 00624_ Lgt. Treads destroyed. 00629_ 1I-M3L(R) affixes Scrap Shield Fragment to Scrap Shield. 00631_ X0-1V1: "And it's a trip and a fumble!" 00631_ Lgt. Treads tossed aside. 00632_ Lgt. Cannon destroyed. 00632_ Acquired Lgt. Treads. 00633_ 1I-M3L(R) destroyed. 00635_ Acquired 23 matter. 00637_ Slammed into 2D-21W(R). 00637_ 2D-21W(R) knocked back. 00638_ X0-1V1 chortles! Map ----- +----------------------------------------------------+ | ?????????????????????????????????????????????????? | | ?????????????????????????????????????????????????? | | ?????????????????????????????????????????????????? | | ?????????????????????????????????????????????????? | | ?????????????????????????????????????????????????? | | ?????????????????????????????????????????????????? | | ?????????????????????????????????????????????????? | | ?????????????????????????????????????????????????? | | ?????????????????????????????????????????????????? | | ?????????????????????????????????????????????????? | | ?????????????????????????????????????????????????? | | ?????????????????????????????????????????????????? | | ?????????????????????????????????????????????????? | | ?????????????????????????????????????????????????? | | ???????????????????### ??????????????????????????? | | ???????????????????# ??????????????????????????? | | ????????????? ?????#% ??????????????????????????? | | ????????????? """ ??????????????????????????? | | ???????????? ? """ ??????????????????????????? | | ????????????? "" % ??????????????????????????? | | ?????????????" % ??????????????????????????? | | ?????????????? %" % #?#####???????????????????? | | ??????????????? " ###% %#???????????????????? | | ????????????????# "" %= #???????????????????? | | ?????????????????# " %R%&%#???????????????????? | | ?????????????????# " %R@%&#????????????????????? | | ?????????????????## % ####????????????????????? | | ??????????????????## % %#???????????????????????? | | ???????????????????# ##???????????????????????? | | ???????????????????#" #####?????????????????????? | | ????????????? " # #" ## ##????????????????????? | | ?????????????"" % "" # ##???????????????????? | | ??????????? # # """ #???????????????????? | | ???????????##?# ?#?## "# % #???????????????????? | | ??????????????#?????# "#???????????????????? | | ???????????????????# # "" %?????????????????? | | ???????????????????##### "" #??????????????? | | ???????????????????????## ### #?????????????? | | ????????????????????????## ##???? #????????????? | | ?????????????????????????#####???????????????????? | | ?????????????????????????????????????????????????? | | ?????????????????????????????????????????????????? | | ?????????????????????????????????????????????????? | | ?????????????????????????????????????????????????? | | ?????????????????????????????????????????????????? | | ?????????????????????????????????????????????????? | | ?????????????????????????????????????????????????? | | ?????????????????????????????????????????????????? | | ?????????????????????????????????????????????????? | | ?????????????????????????????????????????????????? | +----------------------------------------------------+ Best States ------------- Heat Dissipation 25 Energy Generation 10 Energy Capacity 250 Matter Stores 300 Matter Capacity 300 Sight Range 16 Terrain Scan Density 10 ECM Strength 1 Evasion (%) 55 Recoil Reduction 2 Item Schematics ----------------- None Robot Schematics ------------------ None Fabricated ------------ Nothing Repaired ---------- Nothing Studied --------- None Alien Tech Used ----------------- None Achievements -------------- Chaos Is Inevitable Challenges ------------ None Game ------ Seed ImpactSniperHarness Manual? 0 Play Time 00:21:35 Cumulative 249.7 hours Start 2026.08.09 @ 10:42:55 End 2026.08.09 @ 11:08:31 Sessions 1 Manual Loads 0 Difficulty Rogue Special Mode None Game No. 67 Rogue 67 Adventurer 0 Explorer 0 Win Type - Total 10 Types 5/0/2/0/1/1/0/1/0/0 Lore% 65 Gallery% 70 Achievement% 48 Wizard Run 0 Options --------- Layout 2 ASCII 0 Keyboard 1 Movement Vi Keybinds 0 Fullscreen 1 Font 24/Smallcaps Map View 50x44 Zoom Use 0% Tactical HUD 1 Map Filters NONE Filters NONE Steam 1 RUN: b09e1a75-f02e-45c4-a34e-8ae784c6d99e